fUST/lending_fUST_20250705
["ID","MTS","AMOUNT","RATE_DAILY","PERIOD"]
[369763349,1751721049295,-177.7098476,0.00019753,2]
[369763350,1751721049305,-177.7098476,0.00019753,2]
[369763351,1751721049314,-318.8419815,0.00019753,2]
[369763352,1751721049324,-1151.5670927,0.00019753,2]
[369763353,1751721049334,-575.8701278,0.00019753,2]
[369763354,1751721049344,-159.4437807,0.00019753,2]
[369763355,1751721049354,-159.4437807,0.00019753,2]
[369763356,1751721049364,-575.8701278,0.00019753,2]
[369763357,1751721049373,-575.8701278,0.00019753,2]
[369763358,1751721049383,-575.8701278,0.00019753,2]
[369763359,1751721049393,-575.8701278,0.00019753,2]
[369763360,1751721049402,-161.1006376,0.00019753,2]
[369763361,1751721049412,-575.8701278,0.00019753,2]
[369763362,1751721049421,-500.0,0.00019773,2]
[369763363,1751721049431,-500.0,0.00019773,2]
[369763364,1751721049441,-500.0,0.00019773,2]
[369763365,1751721049451,-500.0,0.00019773,2]
[369763366,1751721049460,-500.0,0.00019773,2]
[369763367,1751721049470,-181.52665766,0.00019773,2]
[369763368,1751721049480,-500.33332493,0.00019773,2]
[369763369,1751721049490,-500.0,0.00019773,2]
[369763370,1751721049499,-500.0,0.00019773,2]
[369763371,1751721049509,-500.0,0.00019773,2]
[369763372,1751721049519,-500.0,0.00019773,2]
[369763373,1751721049528,-500.0,0.00019773,2]
[369763374,1751721049538,-500.0,0.00019773,2]
[369763375,1751721049547,-500.0,0.00019773,2]
[369763376,1751721049557,-500.0,0.00019773,2]
[369763377,1751721049566,-500.0,0.00019773,2]
[369763378,1751721049575,-167.57468587,0.00019773,2]
[369763379,1751721049585,-500.0,0.00019773,2]
[369763380,1751721049595,-521.65993159,0.00019773,2]
[369763381,1751721049604,-500.0,0.00019773,2]
[369763382,1751721049614,-500.0,0.00019773,2]
[369763383,1751721049623,-434.62328191,0.00019773,2]
[369763384,1751721049633,-500.0,0.00019773,2]
[369763385,1751721049642,-500.0,0.00019773,2]
[369763386,1751721049652,-500.0,0.00019773,2]
[369763387,1751721049661,-501.57110748,0.00019773,2]
[369763388,1751721049671,-500.0,0.00019773,2]
[369763389,1751721049681,-500.0,0.00019773,2]
[369763390,1751721049690,-500.0,0.00019773,2]
[369763391,1751721049699,-500.0,0.00019773,2]
[369763392,1751721049708,-500.0,0.00019773,2]
[369763393,1751721049718,-500.0,0.00019773,2]
[369763394,1751721049728,-500.0,0.00019773,2]
[369763395,1751721049737,-500.0,0.00019773,2]
[369763396,1751721049746,-500.0,0.00019773,2]
[369763397,1751721049755,-500.0,0.00019773,2]
[369763398,1751721049768,-500.0,0.00019773,2]
[369763399,1751721049777,-500.0,0.00019773,2]
[369763400,1751721049786,-500.0,0.00019773,2]
[369763401,1751721049796,-500.15731438,0.00019773,2]
[369763402,1751721049807,-500.0,0.00019773,2]
[369763403,1751721049817,-500.0,0.00019773,2]
[369763404,1751721049826,-500.0,0.00019773,2]
[369763405,1751721049835,-179.942147,0.000198,2]
[369763406,1751721049847,-732.9565376,0.000198,2]
[369763407,1751721049857,-151.0,0.000198,2]
[369763408,1751721049866,-500.0,0.00019843,2]
[369763409,1751721049875,-207.4,0.00019846,2]
[369763410,1751721049885,-500.0,0.00019846,2]
[369763411,1751721049895,-974.7916819,0.00019881,2]
[369763412,1751721049904,-204.99303741,0.000199,2]
[369763413,1751721049914,-366.5862663,0.00019945,2]
[369763414,1751721049923,-366.5862663,0.00019945,2]
[369763415,1751721049932,-366.5862663,0.00019945,2]
[369763416,1751721049942,-366.5862663,0.00019945,2]
[369763417,1751721049951,-1000.0,0.00019972,2]
[369763418,1751721049963,-1000.0,0.00019972,2]
[369763419,1751721049973,-1000.0,0.00019972,2]
[369763420,1751721049983,-1000.0,0.00019972,2]
[369763421,1751721049993,-1000.0,0.00019972,2]
[369763422,1751721050003,-1000.0,0.00019972,2]
[369763423,1751721050012,-1000.0,0.00019972,2]
[369763424,1751721050022,-1000.0,0.00019972,2]
[369763425,1751721050031,-1000.0,0.00019972,2]
[369763426,1751721050040,-1000.0,0.00019972,2]
[369763427,1751721050050,-1000.0,0.00019972,2]
[369763428,1751721050059,-1000.0,0.00019972,2]
[369763429,1751721050069,-1000.0,0.00019972,2]
[369763430,1751721050079,-1000.0,0.00019972,2]
[369763431,1751721050089,-1000.0,0.00019972,2]
[369763432,1751721050099,-1000.0,0.00019972,2]
[369763433,1751721050109,-1000.0,0.00019972,2]
[369763434,1751721050119,-528.33378149,0.00019972,2]
[369763435,1751721050129,-420.0,0.00019976,2]
[369763436,1751721050140,-848.02350475,0.00019986,2]
[369763437,1751721050150,-230.42616721,0.00019986,2]
[369763438,1751721050160,-837.5764301,0.00019986,2]
[369763439,1751721050170,-160.0,0.00019986,2]
[369763440,1751721050179,-160.0,0.00019986,2]
[369763441,1751721050188,-214.00689675,0.00019986,2]
[369763442,1751721050197,-160.0,0.00019986,2]
[369763443,1751721050207,-12580.16877015,0.00019986,2]
[369763444,1751721050216,-215.14521394,0.00019986,2]
[369763445,1751721050227,-160.0,0.00019986,2]
[369763446,1751721050238,-187.577716,0.00019995,2]
[369763447,1751721050248,-187.577716,0.00019995,2]
[369763448,1751721050258,-460.0,0.0002,2]
[369763449,1751721050268,-460.0,0.0002,2]
[369763450,1751721050279,-460.0,0.0002,2]
[369763451,1751721050290,-460.0,0.0002,2]
[369763452,1751721050301,-460.0,0.0002,2]
[369763453,1751721050310,-460.0,0.0002,2]
[369763454,1751721050319,-460.0,0.0002,2]
[369763455,1751721050329,-460.0,0.0002,2]
[369763456,1751721050338,-460.0,0.0002,2]
[369763457,1751721050348,-155.06868228,0.0002,2]
[369763458,1751721050357,-460.0,0.0002,2]
[369763459,1751721050367,-460.0,0.0002,2]
[369763460,1751721050376,-460.0,0.0002,2]
[369763461,1751721050386,-460.0,0.0002,2]
[369763462,1751721050395,-460.0,0.0002,2]
[369763463,1751721050406,-460.0,0.0002,2]
[369763464,1751721050415,-460.0,0.0002,2]
[369763465,1751721050425,-460.0,0.0002,2]
[369763466,1751721050434,-460.0,0.0002,2]
[369763467,1751721050444,-460.0,0.0002,2]
[369763468,1751721050454,-460.0,0.0002,2]
[369763469,1751721050463,-460.0,0.0002,2]
[369763470,1751721050473,-460.0,0.0002,2]
[369763471,1751721050483,-460.0,0.0002,2]
[369763472,1751721050492,-460.0,0.0002,2]
[369763473,1751721050501,-460.0,0.0002,2]
[369763474,1751721050511,-460.0,0.0002,2]
[369763475,1751721050520,-460.0,0.0002,2]
[369763476,1751721050530,-460.0,0.0002,2]
[369763477,1751721050540,-460.0,0.0002,2]
[369763478,1751721050549,-460.0,0.0002,2]
[369763479,1751721050560,-460.0,0.0002,2]
[369763480,1751721050569,-460.0,0.0002,2]
[369763481,1751721050580,-460.0,0.0002,2]
[369763482,1751721050591,-460.0,0.0002,2]
[369763483,1751721050602,-460.0,0.0002,2]
[369763484,1751721050611,-460.0,0.0002,2]
[369763485,1751721050621,-460.0,0.0002,2]
[369763486,1751721050630,-460.0,0.0002,2]
[369763487,1751721050640,-460.0,0.0002,2]
[369763488,1751721050649,-460.0,0.0002,2]
[369763489,1751721050658,-460.0,0.0002,2]
[369763490,1751721050668,-460.0,0.0002,2]
[369763491,1751721050679,-522.94,0.0002,2]
[369763492,1751721050688,-500.0,0.0002,2]
[369763493,1751721050698,-460.0,0.0002,2]
[369763494,1751721050708,-1210.27,0.0002,2]
[369763495,1751721050717,-460.0,0.0002,2]
[369763496,1751721050726,-460.0,0.0002,2]
[369763497,1751721050735,-460.0,0.0002,2]
[369763498,1751721050745,-460.0,0.0002,2]
[369763499,1751721050857,-687.52,0.0002,2]
[369763500,1751721050867,-460.0,0.0002,2]
[369763501,1751721050878,-460.0,0.0002,2]
[369763502,1751721050887,-460.0,0.0002,2]
[369763503,1751721050896,-460.0,0.0002,2]
[369763504,1751721050906,-460.0,0.0002,2]
[369763505,1751721050916,-460.0,0.0002,2]
[369763506,1751721050927,-340.0,0.0002,2]
[369763507,1751721050936,-460.0,0.0002,2]
[369763508,1751721050945,-460.0,0.0002,2]
[369763509,1751721050957,-460.0,0.0002,2]
[369763510,1751721050967,-460.0,0.0002,2]
[369763511,1751721050977,-460.0,0.0002,2]
[369763512,1751721050988,-460.0,0.0002,2]
[369763513,1751721050999,-460.0,0.0002,2]
[369763514,1751721051008,-460.0,0.0002,2]
[369763515,1751721051018,-604.23633486,0.0002,2]
[369763516,1751721051027,-460.0,0.0002,2]
[369763517,1751721051036,-460.0,0.0002,2]
[369763518,1751721051048,-460.0,0.0002,2]
[369763519,1751721051058,-460.0,0.0002,2]
[369763520,1751721051068,-460.0,0.0002,2]
[369763521,1751721051077,-401.92396583,0.0002,2]
[369763522,1751721051086,-460.0,0.0002,2]
[369763523,1751721051097,-460.0,0.0002,2]
[369763524,1751721051107,-963.22,0.0002,2]
[369763525,1751721051117,-460.0,0.0002,2]
[369763526,1751721051126,-460.0,0.0002,2]
[369763527,1751721051137,-460.0,0.0002,2]
[369763528,1751721051147,-460.0,0.0002,2]
[369763529,1751721051157,-460.0,0.0002,2]
[369763530,1751721051167,-460.0,0.0002,2]
[369763531,1751721051177,-210.74143469,0.0002,2]
[369763532,1751721051187,-460.0,0.0002,2]
[369763533,1751721051197,-460.0,0.0002,2]
[369763534,1751721051208,-460.0,0.0002,2]
[369763535,1751721051217,-622.77,0.0002,2]
[369763536,1751721051228,-460.0,0.0002,2]
[369763537,1751721051239,-460.0,0.0002,2]
[369763538,1751721051249,-460.0,0.0002,2]
[369763539,1751721051259,-552.6,0.0002,2]
[369763540,1751721051268,-460.0,0.0002,2]
[369763541,1751721051278,-460.0,0.0002,2]
[369763542,1751721051288,-460.0,0.0002,2]
[369763543,1751721051297,-538.94,0.0002,2]
[369763544,1751721051308,-460.0,0.0002,2]
[369763545,1751721051317,-460.0,0.0002,2]
[369763546,1751721051327,-151.0,0.0002,2]
[369763547,1751721051336,-460.0,0.0002,2]
[369763548,1751721051346,-460.0,0.0002,2]
[369763549,1751721051355,-460.0,0.0002,2]
[369763550,1751721051364,-925.19,0.0002,2]
[369763551,1751721051379,-548.35,0.0002,2]
[369763552,1751721051389,-460.0,0.0002,2]
[369763553,1751721051399,-460.0,0.0002,2]
[369763554,1751721051409,-460.0,0.0002,2]
[369763555,1751721051419,-460.0,0.0002,2]
[369763556,1751721051429,-460.0,0.0002,2]
[369763557,1751721051438,-460.0,0.0002,2]
[369763558,1751721051448,-460.0,0.0002,2]
[369763559,1751721051458,-460.0,0.0002,2]
[369763560,1751721051467,-460.0,0.0002,2]
[369763561,1751721051477,-460.0,0.0002,2]
[369763562,1751721051487,-460.0,0.0002,2]
[369763563,1751721051497,-460.0,0.0002,2]
[369763564,1751721051507,-460.0,0.0002,2]
[369763565,1751721051517,-710.67,0.0002,2]
[369763566,1751721051527,-460.0,0.0002,2]
[369763567,1751721051537,-460.0,0.0002,2]
[369763568,1751721051547,-460.0,0.0002,2]
[369763569,1751721051559,-460.0,0.0002,2]
[369763570,1751721051568,-556.92,0.0002,2]
[369763571,1751721051578,-151.0,0.0002,2]
[369763572,1751721051589,-460.0,0.0002,2]
[369763573,1751721051598,-460.0,0.0002,2]
[369763574,1751721051608,-460.0,0.0002,2]
[369763575,1751721051619,-460.0,0.0002,2]
[369763576,1751721051630,-460.0,0.0002,2]
[369763577,1751721051640,-460.0,0.0002,2]
[369763578,1751721051650,-151.0,0.0002,2]
[369763579,1751721051660,-460.0,0.0002,2]
[369763580,1751721051669,-460.0,0.0002,2]
[369763581,1751721051679,-460.0,0.0002,2]
[369763582,1751721051689,-476.09,0.0002,2]
[369763583,1751721051700,-460.0,0.0002,2]
[369763584,1751721051710,-460.0,0.0002,2]
[369763585,1751721051720,-460.0,0.0002,2]
[369763586,1751721051729,-460.0,0.0002,2]
[369763587,1751721051740,-460.0,0.0002,2]
[369763588,1751721051749,-591.66,0.0002,2]
[369763589,1751721051761,-151.0,0.0002,2]
[369763590,1751721051773,-460.0,0.0002,2]
[369763591,1751721051782,-460.0,0.0002,2]
[369763592,1751721051792,-460.0,0.0002,2]
[369763593,1751721051801,-460.0,0.0002,2]
[369763594,1751721051811,-1596.43,0.0002,2]
[369763595,1751721051820,-517.64,0.0002,2]
[369763596,1751721051829,-460.0,0.0002,2]
[369763597,1751721051839,-460.0,0.0002,2]
[369763598,1751721051848,-1080.05,0.0002,2]
[369763599,1751721051858,-460.0,0.0002,2]
[369763600,1751721051867,-503.61,0.0002,2]
[369763601,1751721051877,-460.0,0.0002,2]
[369763602,1751721051886,-460.0,0.0002,2]
[369763603,1751721051896,-151.0,0.0002,2]
[369763604,1751721051904,-460.0,0.0002,2]
[369763605,1751721051913,-460.0,0.0002,2]
[369763606,1751721051922,-460.0,0.0002,2]
[369763607,1751721051931,-460.0,0.0002,2]
[369763608,1751721051940,-151.0,0.0002,2]
[369763609,1751721051951,-460.0,0.0002,2]
[369763610,1751721051961,-460.0,0.0002,2]
[369763611,1751721051975,-460.0,0.0002,2]
[369763612,1751721051985,-726.57,0.0002,2]
[369763613,1751721051995,-460.0,0.0002,2]
[369763614,1751721052004,-460.0,0.0002,2]
[369763615,1751721052015,-460.0,0.0002,2]
[369763616,1751721052025,-460.0,0.0002,2]
[369763617,1751721052035,-460.0,0.0002,2]
[369763618,1751721052044,-460.0,0.0002,2]
[369763619,1751721052053,-460.0,0.0002,2]
[369763620,1751721052063,-151.0,0.0002,2]
[369763621,1751721052072,-1216.59,0.0002,2]
[369763622,1751721052082,-471.33,0.0002,2]
[369763623,1751721052091,-151.0,0.0002,2]
[369763624,1751721052101,-460.0,0.0002,2]
[369763625,1751721052111,-460.0,0.0002,2]
[369763626,1751721052120,-460.0,0.0002,2]
[369763627,1751721052130,-644.53,0.0002,2]
[369763628,1751721052140,-460.0,0.0002,2]
[369763629,1751721052150,-460.0,0.0002,2]
[369763630,1751721052160,-460.0,0.0002,2]
[369763631,1751721052170,-460.0,0.0002,2]
[369763632,1751721052179,-460.0,0.0002,2]
[369763633,1751721052190,-1557.5,0.0002,2]
[369763634,1751721052200,-460.0,0.0002,2]
[369763635,1751721052209,-460.0,0.0002,2]
[369763636,1751721052218,-460.0,0.0002,2]
[369763637,1751721052228,-6156.78,0.0002,2]
[369763638,1751721052239,-460.0,0.0002,2]
[369763639,1751721052248,-460.0,0.0002,2]
[369763640,1751721052260,-555.5,0.0002,2]
[369763641,1751721052270,-151.0,0.0002,2]
[369763642,1751721052281,-1370.86,0.0002,2]
[369763643,1751721052292,-151.0,0.0002,2]
[369763644,1751721052301,-460.0,0.0002,2]
[369763645,1751721052313,-460.0,0.0002,2]
[369763646,1751721052322,-500.48,0.0002,2]
[369763647,1751721052332,-460.0,0.0002,2]
[369763648,1751721052341,-460.0,0.0002,2]
[369763649,1751721052351,-466.74,0.0002,2]
[369763650,1751721052360,-4601.49,0.0002,2]
[369763651,1751721052369,-1347.08,0.0002,2]
[369763652,1751721052474,-460.0,0.0002,2]
[369763653,1751721052484,-1597.36,0.0002,2]
[369763654,1751721052493,-1464.28,0.0002,2]
[369763655,1751721052508,-460.0,0.0002,2]
[369763656,1751721052520,-460.0,0.0002,2]
[369763657,1751721052530,-460.0,0.0002,2]
[369763658,1751721052540,-460.0,0.0002,2]
[369763659,1751721052550,-4875.51,0.0002,2]
[369763660,1751721052559,-460.0,0.0002,2]
[369763661,1751721052569,-2467.61,0.0002,2]
[369763662,1751721052579,-553.63,0.0002,2]
[369763663,1751721052590,-460.0,0.0002,2]
[369763664,1751721052600,-460.0,0.0002,2]
[369763665,1751721052609,-460.0,0.0002,2]
[369763666,1751721052618,-460.0,0.0002,2]
[369763667,1751721052628,-460.0,0.0002,2]
[369763668,1751721052639,-460.0,0.0002,2]
[369763669,1751721052649,-460.0,0.0002,2]
[369763670,1751721052658,-460.0,0.0002,2]
[369763671,1751721052668,-460.0,0.0002,2]
[369763672,1751721052677,-179.578221,0.0002,2]
[369763673,1751721052686,-460.0,0.0002,2]
[369763674,1751721052696,-460.0,0.0002,2]
[369763675,1751721052709,-4457.69,0.0002,2]
[369763676,1751721052719,-460.0,0.0002,2]
[369763677,1751721052728,-460.0,0.0002,2]
[369763678,1751721052737,-460.0,0.0002,2]
[369763679,1751721052747,-460.0,0.0002,2]
[369763680,1751721052756,-460.0,0.0002,2]
[369763681,1751721052766,-959.85,0.0002,2]
[369763682,1751721052780,-460.0,0.0002,2]
[369763683,1751721052790,-179.578221,0.0002,2]
[369763684,1751721052802,-216.49993429,0.0002,2]
[369763685,1751721052813,-479.5,0.0002,2]
[369763686,1751721052823,-5048.11,0.0002,2]
[369763687,1751721052832,-460.0,0.0002,2]
[369763688,1751721052842,-460.0,0.0002,2]
[369763689,1751721052851,-2254.67,0.0002,2]
[369763690,1751721052862,-460.0,0.0002,2]
[369763691,1751721052872,-364.49966,0.0002,2]
[369763692,1751721052882,-7943.53,0.0002,2]
[369763693,1751721052892,-460.0,0.0002,2]
[369763694,1751721052902,-460.0,0.0002,2]
[369763695,1751721052911,-364.49966,0.0002,2]
[369763696,1751721052921,-460.0,0.0002,2]
[369763697,1751721052930,-151.0,0.0002,2]
[369763698,1751721052939,-460.0,0.0002,2]
[369763699,1751721052948,-460.0,0.0002,2]
[369763700,1751721052957,-460.0,0.0002,2]
[369763701,1751721052966,-460.0,0.0002,2]
[369763702,1751721052978,-460.0,0.0002,2]
[369763703,1751721052988,-679.18,0.0002,2]
[369763704,1751721052998,-460.0,0.0002,2]
[369763705,1751721053007,-460.0,0.0002,2]
[369763706,1751721053016,-1069.14,0.0002,2]
[369763707,1751721053026,-662.99,0.0002,2]
[369763708,1751721053035,-531.619445,0.0002,2]
[369763709,1751721053044,-4189.72,0.0002,2]
[369763710,1751721053054,-460.0,0.0002,2]
[369763711,1751721053063,-1029.23,0.0002,2]
[369763712,1751721053072,-531.619445,0.0002,2]
[369763713,1751721053081,-460.0,0.0002,2]
[369763714,1751721053091,-460.0,0.0002,2]
[369763715,1751721053100,-460.0,0.0002,2]
[369763716,1751721053109,-460.0,0.0002,2]
[369763717,1751721053119,-460.0,0.0002,2]
[369763718,1751721053128,-570.54073231,0.0002,2]
[369763719,1751721053138,-193.461392,0.0002,2]
[369763720,1751721053147,-460.0,0.0002,2]
[369763721,1751721053157,-460.0,0.0002,2]
[369763722,1751721053167,-2585.72,0.0002,2]
[369763723,1751721053176,-1163.78,0.0002,2]
[369763724,1751721053185,-460.0,0.0002,2]
[369763725,1751721053194,-193.461392,0.0002,2]
[369763726,1751721053204,-3838.69,0.0002,2]
[369763727,1751721053213,-460.0,0.0002,2]
[369763728,1751721053223,-498.69,0.0002,2]
[369763729,1751721053232,-3395.42,0.0002,2]
[369763730,1751721053241,-460.0,0.0002,2]
[369763731,1751721053250,-460.0,0.0002,2]
[369763732,1751721053259,-709.77,0.0002,2]
[369763733,1751721053268,-460.0,0.0002,2]
[369763734,1751721053278,-460.0,0.0002,2]
[369763735,1751721053287,-560.08,0.0002,2]
[369763736,1751721053296,-460.0,0.0002,2]
[369763737,1751721053305,-460.0,0.0002,2]
[369763738,1751721053314,-460.0,0.0002,2]
[369763739,1751721053324,-460.0,0.0002,2]
[369763740,1751721053334,-2248.5,0.0002,2]
[369763741,1751721053343,-460.0,0.0002,2]
[369763742,1751721053353,-525.81,0.0002,2]
[369763743,1751721053363,-2372.17,0.0002,2]
[369763744,1751721053373,-644.72,0.0002,2]
[369763745,1751721053382,-151.0,0.0002,2]
[369763746,1751721053392,-151.0,0.0002,2]
[369763747,1751721053402,-900.96,0.0002,2]
[369763748,1751721053412,-11199.79,0.0002,2]
[369763749,1751721053421,-460.0,0.0002,2]
[369763750,1751721053431,-1584.75,0.0002,2]
[369763751,1751721053441,-697.04,0.0002,2]
[369763752,1751721053450,-460.0,0.0002,2]
[369763753,1751721053460,-460.0,0.0002,2]
[369763754,1751721053469,-460.0,0.0002,2]
[369763755,1751721053479,-660.4,0.0002,2]
[369763756,1751721053489,-10263.15,0.0002,2]
[369763757,1751721053498,-637.37,0.0002,2]
[369763758,1751721053508,-151.0,0.0002,2]
[369763759,1751721053518,-1732.45,0.0002,2]
[369763760,1751721053527,-559.58,0.0002,2]
[369763761,1751721053537,-460.0,0.0002,2]
[369763762,1751721053548,-460.0,0.0002,2]
[369763763,1751721053558,-462.71322776,0.0002,2]
[369763764,1751721053567,-1304.19,0.0002,2]
[369763765,1751721053576,-154.222511,0.0002,2]
[369763766,1751721053585,-460.0,0.0002,2]
[369763767,1751721053595,-973.5,0.0002,2]
[369763768,1751721053604,-500.0,0.0002,2]
[369763769,1751721053613,-460.0,0.0002,2]
[369763770,1751721053622,-460.0,0.0002,2]
[369763771,1751721053632,-4814.61,0.0002,2]
[369763772,1751721053641,-460.0,0.0002,2]
[369763773,1751721053651,-460.0,0.0002,2]
[369763774,1751721053660,-460.0,0.0002,2]
[369763775,1751721053669,-466.97063672,0.0002,2]
[369763776,1751721053679,-1599.55,0.0002,2]
[369763777,1751721053689,-514.12,0.0002,2]
[369763778,1751721053698,-485.31,0.0002,2]
[369763779,1751721053707,-973.56,0.0002,2]
[369763780,1751721053716,-572.31,0.0002,2]
[369763781,1751721053725,-2742.75,0.0002,2]
[369763782,1751721053735,-3855.89,0.0002,2]
[369763783,1751721053744,-802.19,0.0002,2]
[369763784,1751721053753,-460.0,0.0002,2]
[369763785,1751721053763,-1728.61,0.0002,2]
[369763786,1751721053777,-8078.38,0.0002,2]
[369763787,1751721053787,-460.0,0.0002,2]
[369763788,1751721053796,-627.96,0.0002,2]
[369763789,1751721053805,-701.36,0.0002,2]
[369763790,1751721053816,-460.0,0.0002,2]
[369763791,1751721053826,-508.33,0.0002,2]
[369763792,1751721053835,-460.0,0.0002,2]
[369763793,1751721053937,-460.0,0.0002,2]
[369763794,1751721053947,-460.0,0.0002,2]
[369763795,1751721053956,-460.0,0.0002,2]
[369763796,1751721053965,-346.61994643,0.0002,2]
[369763797,1751721053975,-151.0,0.0002,2]
[369763798,1751721053985,-460.0,0.0002,2]
[369763799,1751721053995,-460.0,0.0002,2]
[369763800,1751721054005,-1283.87,0.0002,2]
[369763801,1751721054014,-460.0,0.0002,2]
[369763802,1751721054024,-460.0,0.0002,2]
[369763803,1751721054033,-893.91,0.0002,2]
[369763804,1751721054043,-4000.0,0.0002,4]
[369763805,1751721054055,-151.0,0.0002,2]
[369763806,1751721054065,-460.0,0.0002,2]
[369763807,1751721054075,-460.0,0.0002,2]
[369763808,1751721054085,-460.0,0.0002,2]
[369763809,1751721054095,-460.0,0.0002,2]
[369763810,1751721054105,-460.0,0.0002,2]
[369763811,1751721054115,-460.0,0.0002,2]
[369763812,1751721054125,-641.57,0.0002,2]
[369763813,1751721054135,-460.0,0.0002,2]
[369763814,1751721054146,-460.0,0.0002,2]
[369763815,1751721054157,-2923.74,0.0002,2]
[369763816,1751721054166,-523.55,0.0002,2]
[369763817,1751721054177,-504.5,0.0002,2]
[369763818,1751721054187,-477.68,0.0002,2]
[369763819,1751721054198,-460.0,0.0002,2]
[369763820,1751721054207,-460.0,0.0002,2]
[369763821,1751721054216,-970.52,0.0002,2]
[369763822,1751721054226,-460.0,0.0002,2]
[369763823,1751721054237,-300.0,0.0002,2]
[369763824,1751721054246,-4026.07,0.0002,2]
[369763825,1751721054256,-159.4437807,0.0002,2]
[369763826,1751721054266,-575.8701278,0.0002,2]
[369763827,1751721054276,-168.406886,0.00020018,2]
[369763828,1751721054287,-1000.0,0.00020021,2]
[369763829,1751721054297,-204.99303721,0.00020092,2]
[369763830,1751721054306,-297.0,0.00020145,4]
[369763831,1751721054316,-151.0,0.00020179,2]
[369763832,1751721054326,-151.0,0.00020179,2]
[369763833,1751721054337,-151.0,0.00020179,2]
[369763834,1751721054348,-151.0,0.00020179,2]
[369763835,1751721054357,-151.0,0.00020179,2]
[369763836,1751721054367,-1000.0,0.00020179,5]
[369763837,1751721054376,-205.875354,0.00020187,2]
[369763838,1751721054386,-1500.0,0.00020268,2]
[369763839,1751721054395,-1500.0,0.00020268,2]
[369763840,1751721054405,-1500.0,0.00020268,2]
[369763841,1751721054414,-1500.0,0.00020268,2]
[369763842,1751721054425,-460.0,0.00020273,2]
[369763843,1751721054435,-460.0,0.00020273,2]
[369763844,1751721054444,-342.78643522,0.00020273,2]
[369763845,1751721054455,-460.0,0.00020273,2]
[369763846,1751721054464,-460.0,0.00020273,2]
[369763847,1751721054474,-460.0,0.00020273,2]
[369763848,1751721054484,-460.0,0.00020273,2]